bitfinex/quotes_SOLUSD_20251009
["timestamp","ask_amount","ask_price","bid_price","bid_amount"]
[1759987504196,1e-08,227.21,227.2,6.70751155]
[1759987506626,1e-08,227.21,227.2,5.07140845]
[1759987506837,1e-08,227.21,227.2,6.70751155]
[1759987511423,1e-08,227.21,227.2,5.07140845]
[1759987511618,1e-08,227.21,227.2,6.70751155]
[1759987514446,1e-08,227.21,227.2,17.58398676]
[1759987514937,0.2,227.26,227.25,1.6361031]
[1759987515131,0.2,227.26,227.25,32.4161031]
[1759987515340,0.2,227.26,227.25,33.0861031]
[1759987515836,0.2,227.26,227.25,37.48654314]
[1759987516535,135.47,227.3,227.25,48.48764325]
[1759987516734,134.8,227.3,227.29,1.6361031]
[1759987517230,135.47,227.3,227.29,1.6361031]
[1759987517533,134.8,227.3,227.29,1.6361031]
[1759987518042,134.8,227.3,227.29,4.39966562]
[1759987518344,134.8,227.3,227.29,36.81576872]
[1759987518637,0.67,227.34,227.29,37.48576872]
[1759987518844,0.67,227.34,227.3,1.6361031]
[1759987519023,1.97015264,227.33,227.32,1.6361031]
[1759987519222,0.87,227.33,227.32,1.6361031]
[1759987519947,0.87,227.33,227.32,6.03518809]
[1759987520724,0.2,227.33,227.32,6.03518809]
[1759987521539,0.2,227.33,227.32,6.70518809]
[1759987521731,0.67,227.4,227.32,39.69832551]
[1759987521941,1.09992034,227.39,227.34,4.39869798]
[1759987522124,0.67,227.39,227.38,1.6361031]
[1759987524252,0.67,227.39,227.38,6.03402727]
[1759987525465,0.67,227.39,227.37,1.6361031]
[1759987525756,0.67,227.41,227.38,1.6361031]
[1759987525963,0.67,227.4,227.38,1.6361031]
[1759987526529,0.67,227.4,227.39,4.39773077]
[1759987528353,0.67,227.4,227.37,4.39795853]
[1759987528667,1.6361031,227.38,227.34,4.39869798]
[1759987528865,1.6361031,227.35,227.3,4.39947206]
[1759987529174,0.67,227.34,227.3,15.39815221]
[1759987529359,0.67,227.33,227.3,15.39815221]
[1759987529865,0.67,227.35,227.3,17.70425531]
[1759987530056,0.67,227.34,227.3,17.70425531]
[1759987530371,0.67,227.37,227.33,1.6361031]
[1759987530754,0.67,227.36,227.33,1.6361031]
[1759987531258,0.67,227.36,227.34,4.39869798]
[1759987531960,0.67,227.35,227.34,4.39869798]
[1759987533165,0.67,227.35,227.32,10.99733473]
[1759987533368,0.67,227.34,227.31,4.39927851]
[1759987533559,0.67,227.33,227.31,4.39927851]
[1759987533760,1.6361031,227.36,227.31,4.39927851]
[1759987534272,0.67,227.35,227.31,15.3974748]
[1759987534465,0.67,227.34,227.31,15.3974748]
[1759987534666,0.67,227.33,227.31,15.3974748]
[1759987535373,0.67,227.33,227.31,10.99819629]
[1759987536265,2.3361031,227.32,227.24,2.3361031]
[1759987536568,2.3361031,227.31,227.24,2.3361031]
[1759987536870,2.3361031,227.31,227.25,1.6361031]
[1759987537068,0.7,227.31,227.25,1.6361031]
[1759987537273,0.7,227.31,227.26,4.40024641]
[1759987537463,1.6361031,227.32,227.26,4.40024641]
[1759987537464,0.7,227.3,227.26,4.40024641]
[1759987538070,0.7,227.33,227.27,2.3361031]
[1759987538380,0.7,227.33,227.28,4.3998592]
[1759987538565,0.7,227.32,227.28,4.3998592]
[1759987538979,0.7,227.31,227.28,4.3998592]
[1759987539280,32.3961031,227.34,227.28,4.3998592]
[1759987539481,0.7,227.33,227.28,4.3998592]
[1759987539780,0.7,227.32,227.28,5.0998592]
[1759987539970,12.63671913,227.35,227.28,17.03561031]
[1759987540161,1.10027268,227.34,227.3,1.6361031]
[1759987540478,1.10027268,227.34,227.3,2.3361031]
[1759987540867,1.80027268,227.34,227.3,0.7]
[1759987541068,0.7,227.34,227.3,0.7]
[1759987541579,2.3361031,227.34,227.29,4.39966562]
[1759987541781,1.6361031,227.32,227.29,4.39966562]
[1759987541962,0.7,227.31,227.29,4.39966562]
[1759987542163,0.7,227.3,227.29,4.39966562]
[1759987542363,2.3361031,227.3,227.25,4.40044004]
[1759987542564,2.3361031,227.29,227.25,4.40044004]
[1759987542761,2.3361031,227.28,227.25,4.40044004]
[1759987543256,0.7,227.27,227.25,4.40044004]
[1759987543461,0.7,227.27,227.24,11.00127366]
[1759987543982,1.6361031,227.28,227.24,11.67127366]
[1759987544193,0.69,227.28,227.24,11.00127366]
[1759987544485,0.69,227.28,227.24,11.67127366]
[1759987544857,0.69,227.28,227.24,11.00127366]
[1759987546890,0.69,227.28,227.24,11.67127366]
[1759987548089,1.6361031,227.29,227.24,16.07190735]
[1759987548586,2.3261031,227.29,227.25,0.67]
[1759987549189,134.8,227.31,227.27,1.6361031]
[1759987549365,134.8,227.31,227.28,2.3061031]
[1759987549566,134.8,227.31,227.29,0.67]
[1759987550580,134.8,227.31,227.29,5.06966562]
[1759987551384,134.8,227.31,227.3,2.3061031]
[1759987551588,31.45,227.36,227.3,2.3061031]
[1759987551777,1.1002386,227.35,227.3,2.3061031]
[1759987551978,1.1002386,227.35,227.31,0.67]
[1759987552666,1.1002386,227.35,227.32,4.39908499]
[1759987552867,1.7902386,227.35,227.32,4.39908499]
[1759987553067,1.1002386,227.34,227.32,4.39908499]
[1759987556698,0.69,227.35,227.32,4.39908499]
[1759987557008,1.1002385,227.34,227.32,0.67]
[1759987557187,1.1002386,227.33,227.32,0.67]
[1759987557872,1.10023859,227.35,227.33,4.39889147]
[1759987558093,1.10023859,227.34,227.33,4.39889147]
[1759987558388,1.10023859,227.35,227.33,4.39889147]
[1759987558591,1.10023859,227.34,227.33,4.39889147]
[1759987560401,1.10023859,227.34,227.32,4.39908499]
[1759987560598,134.8,227.38,227.32,4.39908499]
[1759987560599,30.76,227.37,227.33,2.3061031]
[1759987560901,1.10012854,227.36,227.34,2.3061031]
[1759987561297,30.76,227.37,227.34,2.3061031]
[1759987561480,134.8,227.38,227.34,1.6361031]
[1759987561798,134.8,227.38,227.35,0.67]
[1759987561979,30.76,227.39,227.35,0.67]
[1759987562275,1.10003426,227.38,227.35,0.67]
[1759987563001,1.79003426,227.37,227.35,4.3985045]
[1759987563198,1.79003426,227.37,227.32,12.63381557]
[1759987563199,1.79003426,227.36,227.33,4.39889147]
[1759987563399,0.69,227.35,227.33,4.39889147]
[1759987563583,0.69,227.37,227.33,4.39889147]
[1759987563904,1.10008242,227.36,227.33,4.39889147]
[1759987564200,30.76,227.39,227.34,3.22485617]
[1759987564388,1.1000824,227.38,227.35,0.67]
[1759987564585,1.10004836,227.37,227.36,0.67]
[1759987564777,51.56,227.42,227.36,3.22485617]
[1759987564979,30.76,227.42,227.39,17.94691386]
[1759987565181,30.76,227.42,227.4,0.67]
[1759987565493,0.2,227.44,227.41,2.55485617]
[1759987565694,0.2,227.44,227.43,2.55485617]
[1759987566305,0.2,227.44,227.43,3.27485617]
[1759987566981,0.2,227.44,227.43,7.67181347]
[1759987573915,0.1,227.45,227.44,10.87647521]
[1759987574097,0.1,227.45,227.44,14.15133138]
[1759987575996,0.1,227.45,227.44,18.54809536]
[1759987576398,1e-08,227.46,227.44,18.54809536]
[1759987576721,0.1,227.47,227.46,31.67647521]
[1759987576722,1e-08,227.47,227.46,31.67647521]
[1759987576908,1e-08,227.47,227.46,64.97133138]
[1759987577217,1e-08,227.47,227.46,65.69133138]
[1759987577811,1e-08,227.47,227.46,67.53285259]
[1759987578015,1e-08,227.47,227.46,70.08770876]
[1759987579116,1e-08,227.47,227.46,39.34770876]
[1759987579301,1e-08,227.47,227.46,4.39637738]
[1759987579500,1e-08,227.47,227.46,37.69123355]
[1759987580213,1e-08,227.47,227.46,38.41123355]
[1759987583118,1e-08,227.47,227.46,4.39637738]
[1759987583310,0.70000001,227.47,227.46,4.39637738]
[1759987584220,0.70000001,227.47,227.44,15.38867393]
[1759987584417,0.7,227.46,227.44,15.38867393]
[1759987584611,1e-08,227.47,227.44,15.38867393]
[1759987584920,0.70000001,227.47,227.44,15.38867393]
[1759987585093,0.7,227.46,227.44,15.38867393]
[1759987585299,1e-08,227.47,227.44,15.38867393]
[1759987585608,1e-08,227.47,227.42,33.29485617]
[1759987585609,0.7,227.45,227.42,4.39715064]
[1759987585800,0.7,227.44,227.42,4.39715064]
[1759987586127,0.7,227.43,227.42,4.39715064]
[1759987586417,0.7,227.46,227.42,4.39715064]
[1759987586628,0.7,227.45,227.42,4.39715064]
[1759987586828,2.55485618,227.47,227.42,4.39715064]
[1759987587121,0.7,227.46,227.42,4.39715064]
[1759987587320,1e-08,227.47,227.44,2.55485617]
[1759987587525,1e-08,227.47,227.45,4.39657067]
[1759987587908,0.7,227.46,227.45,4.39657067]
[1759987588811,1e-08,227.47,227.45,4.39657067]
[1759987588999,0.70000001,227.47,227.45,4.39657067]
[1759987589731,1e-08,227.47,227.45,3.27485617]
[1759987590025,1e-08,227.47,227.46,3.27485617]
[1759987590826,1e-08,227.47,227.46,7.67123355]
[1759987597826,1e-08,227.47,227.46,6.95123355]
[1759987598632,0.71000001,227.47,227.46,4.39637738]
[1759987599127,3.26485618,227.47,227.43,4.3969573]
[1759987599318,3.26485618,227.47,227.31,19.99999999]
[1759987599319,2.55485617,227.44,227.38,4.39792417]
[1759987599634,3.26485617,227.43,227.38,15.39250285]
[1759987599834,0.71,227.42,227.38,15.39250285]
[1759987601135,0.71,227.41,227.38,10.99457868]
[1759987601437,3.26485617,227.43,227.38,10.99457868]
[1759987601640,0.71,227.42,227.38,11.66457868]
[1759987602019,0.71,227.42,227.38,10.99457868]
[1759987602341,0.71,227.41,227.38,10.99457868]
[1759987602632,3.26485617,227.43,227.38,11.66457868]
[1759987602852,0.71,227.42,227.38,11.66457868]
[1759987604154,0.71,227.42,227.38,16.06250285]
[1759987605653,2.55485617,227.43,227.38,16.06250285]
[1759987605838,0.7,227.43,227.4,4.39753737]
[1759987606736,138.05485617,227.46,227.41,0.72]
[1759987606931,0.7,227.45,227.41,0.72]
[1759987608122,0.7,227.45,227.42,4.39715064]
[1759987609229,134.8,227.46,227.42,4.39715064]
[1759987609533,134.8,227.46,227.42,5.11715064]
[1759987609534,1.09961411,227.45,227.42,5.11715064]
[1759987610230,135.5,227.46,227.42,5.11715064]
[1759987610550,1.09961411,227.45,227.42,16.11002725]
[1759987610753,1.09961411,227.45,227.43,0.72]
[1759987611255,1.09961411,227.45,227.42,15.39002725]
[1759987611456,1.09961411,227.45,227.42,16.11002725]
[1759987613854,1.79961411,227.45,227.42,15.39002725]
[1759987614062,0.7,227.45,227.42,15.39002725]
[1759987614235,134.8,227.46,227.42,15.39002725]
[1759987614429,1.09961411,227.45,227.42,16.11002725]
[1759987615748,1.79961411,227.45,227.42,4.39715064]
[1759987615954,2.55485617,227.43,227.42,4.39715064]
[1759987616254,3.25485617,227.43,227.42,4.39715064]
[1759987616847,0.7,227.43,227.42,4.39715064]
[1759987617144,134.8,227.46,227.42,16.11002725]
[1759987617461,1.099614,227.45,227.42,16.11002725]
[1759987618036,1.099614,227.45,227.43,0.72]
[1759987618361,134.8,227.46,227.43,0.72]
[1759987620060,134.8,227.46,227.44,4.39676398]
[1759987621261,134.8,227.46,227.42,18.66488342]
[1759987621472,134.8,227.46,227.43,0.72]
[1759987622465,134.8,227.46,227.44,7.67162015]
[1759987622849,134.8,227.46,227.44,5.11676398]
[1759987623149,1e-08,227.47,227.45,0.72]
[1759987623356,1e-08,227.47,227.45,3.27485617]
[1759987624364,1e-08,227.47,227.46,4.39637738]
[1759987625951,1e-08,227.47,227.45,4.39657067]
[1759987626147,1e-08,227.47,227.45,5.11657067]
[1759987628161,1e-08,227.47,227.46,2.35320664]
[1759987629546,1e-08,227.47,227.46,6.74958402]
[1759987634552,1e-08,227.47,227.46,48.36605923]
[1759987642657,1e-08,227.47,227.46,35.13637738]
[1759987642854,1e-08,227.47,227.46,57.54958402]
[1759987642855,0.72000001,227.47,227.46,57.54958402]
[1759987643060,1e-08,227.47,227.46,57.54958402]
[1759987646582,1e-08,227.47,227.46,26.82958402]
[1759987646958,1e-08,227.47,227.46,57.54958402]
[1759987647966,1e-08,227.47,227.46,58.26958402]
[1759987649484,1e-08,227.47,227.46,69.14605923]
[1759987651286,0.72000001,227.47,227.46,36.07285259]
[1759987651461,1e-08,227.47,227.46,68.42605923]
[1759987652172,1e-08,227.47,227.46,57.54958402]
[1759987658494,1e-08,227.47,227.46,26.82958402]
[1759987658798,1e-08,227.47,227.46,57.54958402]
[1759987659779,1e-08,227.47,227.46,58.26958402]
[1759987659974,1e-08,227.47,227.46,57.54958402]
[1759987660493,1e-08,227.47,227.46,58.26958402]
[1759987663884,1e-08,227.47,227.46,69.14605923]
[1759987664278,1e-08,227.47,227.46,70.90565452]
[1759987665181,1e-08,227.47,227.46,69.14605923]
[1759987665393,0.71000001,227.47,227.46,1.75959529]
[1759987665796,0.71000001,227.47,227.44,10.99190995]
[1759987666000,0.71,227.46,227.44,10.99190995]
[1759987666195,1e-08,227.47,227.45,33.07320664]
[1759987667288,1e-08,227.47,227.46,11.59647521]
[1759987667493,1e-08,227.47,227.46,15.99285259]
[1759987670382,1e-08,227.49,227.47,10.87647521]
[1759987670589,1e-08,227.49,227.48,32.35320664]
[1759987670785,1e-08,227.49,227.48,33.07320664]
[1759987670998,1e-08,227.49,227.48,34.83256975]
[1759987671705,1e-08,227.49,227.48,39.2285606]
[1759987676107,1e-08,227.49,227.48,56.63786237]
[1759987676808,1e-08,227.49,227.48,57.07746145]
[1759987678597,0.1,227.56,227.52,31.67647521]
[1759987678797,0.1,227.56,227.51,20.8]
[1759987678798,0.1,227.56,227.55,12.50968185]
[1759987679013,0.1,227.56,227.55,43.20968185]
[1759987680001,0.81,227.56,227.54,1.75897627]
[1759987680308,0.71,227.55,227.54,30.7]
[1759987680701,0.71,227.55,227.53,51.5]
[1759987680917,0.71,227.54,227.53,51.5]
[1759987681220,0.71,227.54,227.52,15.383263]
[1759987681400,0.71,227.53,227.52,46.083263]
[1759987681720,0.71,227.53,227.52,15.383263]
[1759987682100,0.81,227.56,227.52,17.01646964]
[1759987682301,0.1,227.56,227.55,1.63320664]
[1759987682713,0.1,227.56,227.55,36.72784518]
[1759987683297,0.1,227.56,227.55,47.60432039]
[1759987683615,0.1,227.56,227.55,48.32432039]
[1759987683915,1e-08,227.56,227.55,48.32432039]
[1759987684299,1e-08,227.56,227.55,50.08321931]
[1759987687133,0.1,227.61,227.58,10.87647521]
[1759987687333,0.1,227.61,227.6,12.50968185]
[1759987687798,0.1,227.61,227.6,16.18849067]
[1759987688125,0.1,227.61,227.6,17.10250681]
[1759987688325,0.67,227.67,227.64,10.87647521]
[1759987688504,0.2,227.7,227.66,2.54722278]
[1759987688701,0.2,227.7,227.69,2.54722278]
[1759987688931,0.87,227.7,227.69,33.24722278]
[1759987691128,0.87,227.7,227.64,15.26920017]
[1759987691340,0.67,227.69,227.66,2.54722278]
[1759987691537,0.67,227.68,227.67,30.7]
[1759987692726,0.67,227.68,227.67,33.24722278]
[1759987695248,0.67,227.68,227.67,2.54722278]
[1759987696560,0.87,227.7,227.67,2.54722278]
[1759987696742,0.67,227.69,227.67,2.54722278]
[1759987698329,0.2,227.7,227.67,2.54722278]
[1759987698526,0.67,227.69,227.67,2.54722278]
[1759987700051,3.21722278,227.68,227.62,30.68]
[1759987700342,0.67,227.67,227.62,30.68]
[1759987700551,0.67,227.66,227.62,30.68]
[1759987700738,0.67,227.65,227.62,30.68]
[1759987701341,0.67,227.65,227.63,2.54722278]
[1759987702247,0.67,227.65,227.62,2.54722278]
[1759987702547,0.67,227.64,227.61,54.02722278]
[1759987702741,0.67,227.66,227.61,54.74722278]
[1759987703051,0.67,227.65,227.61,54.74722278]
[1759987705141,0.67,227.65,227.61,54.02722278]
[1759987705441,0.67,227.64,227.61,54.02722278]
[1759987705629,0.67,227.64,227.61,23.34722278]
[1759987705832,0.67,227.63,227.61,20.8]
[1759987706454,4.39229782,227.68,227.6,30.68]
[1759987706654,0.67,227.64,227.56,0.72]
[1759987706859,0.67,227.64,227.57,48.49599581]
[1759987707157,0.67,227.63,227.57,49.21599581]
[1759987707456,0.67,227.63,227.58,0.72]
[1759987707655,0.67,227.63,227.59,0.72]
[1759987708839,0.67,227.63,227.6,2.54722278]
[1759987709436,0.67,227.65,227.6,0.72]
[1759987709637,8.78525535,227.67,227.6,0.72]
[1759987709638,0.67,227.64,227.6,3.26722278]
[1759987710437,0.67,227.64,227.6,0.72]
[1759987711455,0.67,227.66,227.61,3.26722278]
[1759987712039,0.67,227.65,227.61,3.26722278]
[1759987712654,0.67,227.65,227.61,0.72]
[1759987712848,0.67,227.64,227.6,2.54722278]
[1759987713042,0.67,227.64,227.6,3.26722278]
[1759987713450,4.39272929,227.65,227.59,30.68]
[1759987713451,0.67,227.63,227.59,30.68]
[1759987713642,0.67,227.63,227.59,31.4]
[1759987714156,5.06272929,227.65,227.6,0.72]
[1759987714332,0.67,227.64,227.6,0.72]
[1759987714759,5.06290148,227.64,227.6,0.72]
[1759987715441,5.06251515,227.66,227.61,0.72]
[1759987715642,0.67,227.65,227.61,3.26722278]
[1759987717140,25.19226213,227.68,227.63,2.54722278]
[1759987717341,4.59190842,227.7,227.64,0.71]
[1759987717661,4.59190842,227.7,227.59,30.68]
[1759987717662,1.75862518,227.69,227.62,3.25722278]
[1759987717966,1.75862518,227.68,227.62,3.25722278]
[1759987718162,0.66,227.68,227.62,3.25722278]
[1759987718667,5.05229637,227.68,227.62,3.25722278]
[1759987719361,0.66,227.68,227.63,3.25722278]
[1759987719869,0.66,227.68,227.64,3.25722278]
[1759987720950,4.59175441,227.7,227.65,0.71]
[1759987721151,5.25175441,227.7,227.65,0.71]
[1759987722063,5.25175441,227.7,227.64,2.54722278]
[1759987722266,5.25175441,227.7,227.65,0.71]
[1759987722453,5.24175441,227.7,227.65,0.71]
[1759987722869,1.0985338,227.69,227.65,0.71]
[1759987723069,0.2,227.7,227.67,2.54722278]
[1759987723259,0.2,227.7,227.68,0.66]
[1759987723654,0.2,227.7,227.69,0.66]
[1759987723970,0.2,227.7,227.68,0.66]
[1759987724268,0.2,227.7,227.67,2.54722278]
[1759987726350,0.2,227.7,227.65,2.54722278]
[1759987726870,0.2,227.7,227.66,0.66]
[1759987727256,1.29844752,227.7,227.66,0.66]
[1759987727764,1.29844752,227.7,227.67,0.66]
[1759987731250,0.2,227.7,227.67,3.20722278]
[1759987731769,1.29844041,227.7,227.67,3.20722278]
[1759987731973,0.2,227.7,227.67,3.20722278]
[1759987732166,0.2,227.7,227.68,0.66]
[1759987732360,1.29844041,227.7,227.68,0.66]
[1759987732560,0.2,227.7,227.68,0.66]
[1759987732868,0.2,227.7,227.66,0.66]
[1759987733178,1.29844031,227.7,227.67,0.66]
[1759987733477,0.2,227.7,227.67,0.66]
[1759987733856,0.65,227.69,227.65,0.66]
[1759987734763,0.65,227.68,227.64,4.39289283]
[1759987734971,0.65,227.67,227.63,20.8]
[1759987735166,0.65,227.66,227.63,20.8]
[1759987735372,0.65,227.69,227.64,0.66]
[1759987735558,1.09852932,227.68,227.64,0.66]
[1759987735977,0.65,227.68,227.64,0.66]
[1759987737672,0.65,227.68,227.64,3.20722278]
[1759987737874,4.59182136,227.7,227.65,0.66]
[1759987738073,5.24182136,227.7,227.64,6.93999852]
[1759987738373,5.24182136,227.7,227.66,0.66]
[1759987739881,0.85,227.7,227.66,0.66]
[1759987740290,0.2,227.7,227.66,2.54722278]
[1759987740580,0.2,227.7,227.68,2.54722278]
[1759987740788,1.29844052,227.7,227.68,2.54722278]
[1759987740989,0.2,227.7,227.68,3.20722278]
[1759987741280,0.2,227.7,227.69,0.66]
[1759987741990,0.2,227.7,227.69,3.20722278]
[1759987742563,0.2,227.7,227.69,2.54722278]
[1759987743266,0.2,227.7,227.67,0.66]
[1759987743476,0.2,227.7,227.68,3.20722278]
[1759987744191,0.2,227.7,227.68,2.54722278]
[1759987744494,0.2,227.7,227.68,3.20722278]
[1759987744908,0.2,227.7,227.68,2.54722278]
[1759987745191,0.2,227.7,227.69,0.66]
[1759987746894,0.2,227.7,227.69,3.20722278]
[1759987748091,0.2,227.7,227.69,2.54722278]
[1759987748760,0.2,227.7,227.68,2.54722278]
[1759987748960,0.2,227.7,227.68,0.71]
[1759987749184,0.2,227.7,227.68,3.25722278]
[1759987749905,0.2,227.7,227.68,2.3396962]
[1759987750893,0.2,227.7,227.69,1.6296962]
[1759987752310,0.2,227.7,227.69,40.03780401]
[1759987752474,0.2,227.7,227.69,38.40810781]
[1759987753779,0.2,227.7,227.69,44.92689261]
[1759987753986,0.2,227.7,227.69,50.00692062]
[1759987754778,0.2,227.7,227.69,50.44611426]
[1759987755781,1.09797854,227.81,227.74,10.87647521]
[1759987755987,1.09797854,227.81,227.78,1.6296962]
[1759987756188,1.78797854,227.81,227.78,1.6296962]
[1759987756387,0.69,227.8,227.78,1.6296962]
[1759987756700,0.69,227.8,227.77,1.6296962]
[1759987758084,0.69,227.8,227.78,1.6296962]
[1759987758496,0.69,227.82,227.78,1.6296962]
[1759987758798,0.69,227.81,227.78,1.6296962]
[1759987759207,4.3888396,227.86,227.79,1.6296962]
[1759987759379,4.3888396,227.86,227.8,0.71]
[1759987759380,1.09786754,227.85,227.8,0.71]
[1759987759581,1.09786754,227.85,227.78,10.87647521]
[1759987759582,0.69,227.84,227.83,1.6296962]
[1759987759783,0.69,227.87,227.83,1.6296962]
[1759987759999,0.69,227.89,227.83,0.71]
[1759987760201,0.69,227.89,227.85,1.6296962]
[1759987760504,0.69,227.88,227.85,1.6296962]
[1759987760704,0.89,227.9,227.86,1.6296962]
[1759987761004,0.69,227.89,227.86,1.6296962]
[1759987761885,0.2,227.9,227.87,1.6296962]
[1759987762092,0.89,227.9,227.87,1.6296962]
[1759987762898,0.89,227.9,227.86,2.3396962]
[1759987763085,0.2,227.9,227.88,1.6296962]
[1759987763290,0.69,227.89,227.87,1.6296962]
[1759987763495,0.69,227.89,227.86,1.6296962]
[1759987763891,0.2,227.9,227.86,1.6296962]
[1759987764101,0.89,227.9,227.86,2.3396962]
[1759987764395,0.89,227.9,227.87,1.6296962]
[1759987764597,0.2,227.9,227.87,1.6296962]
[1759987766298,0.2,227.9,227.87,0.71]
[1759987766507,0.2,227.9,227.87,1.6296962]
[1759987767007,0.2,227.9,227.87,2.3396962]
[1759987770213,0.2,227.9,227.88,0.71]
[1759987772226,0.2,227.9,227.87,1.6296962]
[1759987772400,0.2,227.9,227.86,2.3396962]
[1759987772912,0.2,227.9,227.86,1.6296962]
[1759987773113,0.2,227.9,227.87,0.71]
[1759987773314,0.2,227.9,227.83,50.31452032]
[1759987773502,0.69,227.89,227.83,45.92570762]
[1759987773822,0.69,227.88,227.83,46.63570461]
[1759987774017,0.69,227.88,227.84,0.71]
[1759987774219,0.2,227.9,227.84,6.01873934]
[1759987774409,0.2,227.9,227.86,1.6296962]
[1759987774720,0.2,227.9,227.87,2.3396962]
[1759987775298,0.69,227.89,227.85,1.6296962]
[1759987775498,0.69,227.89,227.85,0.71]
[1759987775703,0.69,227.88,227.83,30.66]
[1759987775907,0.69,227.87,227.82,0.71]
[1759987776100,6.0179832,227.88,227.82,0.71]
[1759987776301,0.69,227.87,227.82,0.71]
[1759987776625,0.69,227.86,227.82,0.71]
[1759987776822,1.6296962,227.87,227.79,36.65952077]
[1759987777123,0.69,227.85,227.8,20.8]
[1759987777301,0.69,227.84,227.8,0.72]
[1759987777715,0.69,227.86,227.81,0.72]
[1759987777923,0.69,227.85,227.81,0.72]
[1759987779138,0.69,227.86,227.81,0.72]
[1759987780629,4.38847736,227.87,227.81,0.72]
[1759987780941,0.69,227.86,227.81,0.72]
[1759987781327,4.38847736,227.87,227.81,0.72]
[1759987781328,0.69,227.85,227.81,0.72]
[1759987782343,0.69,227.85,227.81,2.3496962]
[1759987782862,0.69,227.84,227.79,1.6296962]
[1759987783139,0.69,227.84,227.79,6.739567]
[1759987783341,0.67,227.86,227.8,0.72]
[1759987783540,0.67,227.86,227.8,2.3496962]
[1759987783851,4.38847736,227.87,227.81,2.3096962]
[1759987784347,4.38847736,227.87,227.82,0.68]
[1759987784543,4.38847736,227.87,227.81,6.01929637]
[1759987784736,0.67,227.87,227.83,2.3096962]
[1759987784934,0.67,227.88,227.83,2.3096962]
[1759987785141,4.38808196,227.89,227.83,2.3096962]
[1759987785442,0.67,227.88,227.83,2.3096962]
[1759987785934,4.38808196,227.89,227.83,0.68]
[1759987786132,5.05834045,227.88,227.83,0.68]
[1759987786347,0.67,227.87,227.83,0.68]
[1759987787237,4.38808196,227.89,227.82,1.6296962]
[1759987787547,5.05808196,227.89,227.84,0.68]
[1759987787736,0.2,227.9,227.85,2.3096962]
[1759987787936,0.67,227.89,227.84,1.6296962]
[1759987788265,0.67,227.89,227.85,0.68]
[1759987788953,0.67,227.88,227.84,1.6296962]
[1759987789123,6.21759929,227.9,227.84,1.6296962]
[1759987789329,0.67,227.87,227.84,1.6296962]
[1759987789939,0.67,227.89,227.84,2.3096962]
[1759987790149,0.67,227.89,227.85,0.68]
[1759987791942,0.2,227.9,227.86,0.68]
[1759987792140,1.6296962,227.89,227.86,0.68]
[1759987792446,2.2996962,227.89,227.84,11.55647521]
[1759987792638,1.6296962,227.89,227.85,0.68]
[1759987792852,1.6296962,227.89,227.86,0.68]
[1759987793260,2.2996962,227.89,227.84,0.68]
[1759987793556,2.2996962,227.89,227.85,0.68]
[1759987793759,1.6296962,227.89,227.86,0.68]
[1759987794258,1.6296962,227.89,227.84,5.06888822]
[1759987794440,1.6296962,227.89,227.85,0.68]
[1759987794645,1.8296962,227.9,227.86,0.68]
[1759987794829,0.2,227.9,227.86,0.68]
[1759987795156,4.38808196,227.89,227.81,25.86959388]
[1759987795366,1.6296962,227.87,227.82,0.68]
[1759987795535,2.2996962,227.87,227.83,0.68]
[1759987796045,1.6296962,227.88,227.84,0.68]
[1759987796425,2.2996962,227.88,227.84,0.68]
[1759987797954,0.67,227.88,227.84,0.68]
[1759987798568,1.6296962,227.89,227.83,6.01887034]
[1759987798734,1.6296962,227.89,227.84,0.68]
[1759987798933,1.6296962,227.89,227.85,0.68]